fUSD/lending_fUSD_20260305
["ID","MTS","AMOUNT","RATE_DAILY","PERIOD"]
[407690291,1772680243408,-166.66,0.00037042,30]
[407690292,1772680243429,-15.21619905,0.000372,120]
[407690293,1772680243513,-205.49111112,0.000372,120]
[407690294,1772680243523,-487.60232668,0.00037691,2]
[407690295,1772680243534,-512.39767332,0.00037691,2]
[407690296,1772680243543,-160.7651713,0.00037753,120]
[407690297,1772680243552,-2326.83715538,0.00037794,2]
[407690298,1772680243647,-0.43487401,0.00037794,2]
[407690305,1772680246287,-2600.0,0.00037794,2]
[407690306,1772680246300,-2353.44615851,0.00037794,2]
[407690307,1772680246309,-150.0,0.00037983,2]
[407690308,1772680246319,-180.575,0.0003811,30]
[407690309,1772680246328,-169.812,0.00038247,51]
[407690310,1772680246338,-3424.371,0.00038247,51]
[407690311,1772680246347,-783.0,0.00038277,2]
[407690312,1772680246357,-2957.44136685,0.00038767,2]
[407690313,1772680246399,-496.21863315,0.00038767,2]
[407690314,1772680246409,-1004.0,0.00038862,2]
[407690315,1772680246418,-7280.7181879,0.00038887,2]
[407690316,1772680246428,-193.11,0.0003892,2]
[407690317,1772680246437,-1117.0,0.00038939,2]
[407690318,1772680246446,-220.70731013,0.00039022,120]
[407690319,1772680246456,-234.49195757,0.00039082,30]
[407690320,1772680246465,-150.0,0.000393,30]
[407690321,1772680246474,-180.575,0.0003948,30]
[407690322,1772680246484,-2000.0,0.00039815,120]
[407690323,1772680246493,-7280.7181879,0.00039981,15]
[407690324,1772680246504,-4720.31128813,0.0004,2]
[407690326,1772680246513,-193.11,0.00040099,2]
[407690327,1772680246523,-284.4246,0.000402,2]
[407690328,1772680246532,-20885.01,0.00040438,10]
[407690329,1772680246542,-151.0,0.00040445,14]
[407690330,1772680246551,-22473.0,0.00040448,60]
[407690331,1772680246560,-172.361231,0.00040726,60]
[407690332,1772680246570,-3501.0,0.00040754,2]
[407690333,1772680246579,-621.906,0.00040754,2]
[407690334,1772680246589,-1278.0,0.00040754,2]
[407690335,1772680246598,-152.0,0.00040801,3]
[407690336,1772680246608,-670.03,0.00040904,2]
[407690337,1772680246618,-7280.7181879,0.00041074,15]
[407690338,1772680246627,-1097.0,0.00041119,5]
[407690339,1772680246637,-1449.48202386,0.00041128,30]
[407690340,1772680246646,-193.11,0.00041279,2]
[407690341,1772680246656,-150.0,0.000413,60]
[407690342,1772680246666,-151.0,0.00041781,120]
[407690343,1772680246675,-151.0,0.00041781,120]
[407690344,1772680246685,-151.0,0.00041781,14]
[407690345,1772680246694,-151.0,0.00041781,14]
[407690346,1772680246704,-151.0,0.00041781,14]
[407690347,1772680246713,-151.0,0.00041781,14]
[407690348,1772680246722,-22473.0,0.00041781,60]
[407690349,1772680246732,-2500.0,0.0004187,2]
[407690350,1772680246742,-3193.537,0.0004197,2]
[407690351,1772680246751,-2473.877,0.0004197,2]
[407690352,1772680246761,-414.671,0.0004197,2]
[407690353,1772680246771,-1048.50100127,0.0004197,2]
[407690354,1772680246781,-306.61635286,0.0004197,2]
[407690355,1772680246791,-856.13486002,0.0004197,2]
[407690356,1772680246800,-307.87522791,0.0004197,2]
[407690357,1772680246810,-300.0,0.0004197,2]
[407690358,1772680246820,-459.37693596,0.0004197,2]
[407690359,1772680246830,-300.0,0.0004197,2]
[407690360,1772680246839,-472.64845478,0.0004197,2]
[407690361,1772680246849,-372.1160746,0.0004197,2]
[407690362,1772680246859,-300.0,0.0004197,2]
[407690363,1772680246871,-300.28645221,0.0004197,2]
[407690364,1772680246881,-519.58908537,0.0004197,2]
[407690365,1772680246891,-306.82968309,0.0004197,2]
[407690366,1772680246901,-300.0,0.0004197,2]
[407690367,1772680246911,-300.0,0.0004197,2]
[407690368,1772680246921,-1084.19175733,0.0004197,2]
[407690369,1772680246931,-519.89132754,0.0004197,2]
[407690370,1772680246940,-446.873639,0.0004197,2]
[407690371,1772680246950,-1048.50100127,0.0004197,2]
[407690372,1772680246960,-306.61635286,0.0004197,2]
[407690373,1772680246969,-856.13486002,0.0004197,2]
[407690374,1772680246979,-307.87522791,0.0004197,2]
[407690375,1772680246988,-300.0,0.0004197,2]
[407690376,1772680246998,-459.37693596,0.0004197,2]
[407690377,1772680247007,-65.7994515,0.0004197,2]
[407690378,1772680443036,-300.0,0.00035626,120]
[407690379,1772680443301,-4400.01,0.00035626,120]
[407690380,1772680443361,-299.99,0.00035626,120]
[407690381,1772680445869,-300.0,0.00035626,120]
[407690382,1772680445897,-250.0,0.0003617,2]
[407690383,1772680445925,-151.413595,0.00037245,7]
[407690384,1772680445954,-300.0,0.00037352,120]
[407690385,1772680445982,-250.0,0.00038591,2]
[407690386,1772680446011,-300.0,0.00038591,30]
[407690387,1772680446039,-300.0,0.00038591,120]
[407690388,1772680446092,-1297.18281,0.00038591,120]
[407690389,1772680446214,-3702.81719,0.00038591,120]
[407690390,1772680451883,-250.0,0.00039659,2]
[407690391,1772680577205,171.6339,0.00032683,2]
[407690392,1772680577625,171.6339,0.00032683,2]
[407690393,1772680578147,171.6339,0.00032683,2]
[407690394,1772680639986,171.6339,0.00032683,2]
[407690395,1772680640498,171.6339,0.00032683,2]
[407690396,1772680641000,171.6339,0.00032683,2]
[407690397,1772680646454,-166.79245387,0.00039,120]
[407690398,1772680646482,-165.53048262,0.00039691,120]
[407690399,1772680681216,400.0,0.0003979,5]
[407690400,1772680732299,973.5507,0.00039691,30]
[407690401,1772680741411,400.0,0.0003979,5]
[407690402,1772680801216,400.0,0.0003979,5]
[407690403,1772680855328,168.0,0.00039324,2]
[407690404,1772680861699,400.0,0.0003979,5]
[407690405,1772680871846,168.0,0.00039237,2]
[407690406,1772680875857,168.0,0.00039233,2]
[407690407,1772680921329,400.0,0.0003979,5]
[407690408,1772680927050,180.58,0.0003929,14]
[407690409,1772680950349,-1207.35,0.00039791,2]
[407690410,1772680950378,-150.99,0.00039791,30]
[407690411,1772680950407,-2109.48,0.00039791,10]
[407690412,1772680950840,-3712.14,0.00039791,2]
[407690413,1772680950881,-0.02,0.00039791,2]
[407690414,1772680950949,-963.09076351,0.00039791,2]
[407690415,1772680950962,-9036.87923649,0.00039791,2]
[407690416,1772680950972,-963.11076351,0.00039791,30]
[407690417,1772680951000,-10000.01,0.00039791,30]
[407690418,1772680953379,-440.59076351,0.00039791,30]
[407690419,1772680953402,-9118.82847298,0.00039791,30]
[407690420,1772680953497,-3733.94,0.00039791,2]
[407690421,1772680953521,-2532.13,0.00039791,2]
[407690422,1772680956575,-1809.55,0.00039791,2]
[407690423,1772680956606,-150.99,0.00039791,2]
[407690424,1772680956636,-1507.66517,0.00039791,15]
[407690425,1772680956667,-1500.0,0.00039791,15]
[407690426,1772680956749,-63.59966,0.00039791,15]
[407690427,1772680956959,-2027.193009,0.00039791,15]
[407690428,1772680956989,-169.812,0.00039791,56]
[407690429,1772680957019,-2181.628982,0.00039791,56]
[407690430,1772680957073,-1242.742018,0.00039791,56]
[407690431,1772680959440,924.87087155,0.00039731,2]
[407690432,1772680961067,2747.13499888,0.00039731,2]
[407690433,1772681133186,150.0,0.0001,120]
[407690434,1772681156983,2742.8,0.0001,120]
[407690435,1772681168617,361.958588,0.00038376,60]
[407690436,1772681318846,1519.3290755,0.00039552,2]
[407690437,1772681428978,150.0,0.00039791,2]
[407690441,1772681431360,-152.7,0.000399,30]
[407690442,1772681431371,-195.0,0.00039925,120]
[407690443,1772681431380,-1160.30158104,0.0003995,120]
[407690444,1772681431393,-612.51,0.0003995,120]
[407690445,1772681431470,-592.36206145,0.0003995,120]
[407690446,1772681431486,-2634.82635751,0.0003995,120]
[407690447,1772681431496,-250.0,0.0003995,120]
[407690448,1772681431507,-195.0,0.00039996,120]
[407690449,1772681431517,-459.58910167,0.0004,120]
[407690450,1772681431527,-2834.02977194,0.0004006,120]
[407690451,1772681431537,-175.52063973,0.00040068,120]
[407690452,1772681431547,-373.85433748,0.00040165,5]
[407690453,1772681437427,-878.96667,0.00040165,5]
[407690454,1772681437645,-186.17899252,0.00040165,5]
[407690455,1772681437657,-1166.2036478,0.00040166,2]
[407690456,1772681437668,-2700.4563522,0.00040166,2]
[407690457,1772681437678,-179.87960378,0.0004019,120]
[407690458,1772681437687,-653.54144415,0.0004026,2]
[407690459,1772681437697,-168.0,0.00040268,2]
[407690461,1772681437706,-168.0,0.00040305,2]
[407690463,1772681437715,-178.27,0.00040318,2]
[407690465,1772681437725,-1050.56102485,0.0004033,5]
[407690658,1772681439622,150.0,0.00039791,2]
[407690682,1772681439838,-1149.43897515,0.0004033,5]
[407690684,1772681439848,-550.0,0.0004033,5]
[407690686,1772681439857,-550.0,0.0004033,5]
[407690688,1772681439867,-363.0,0.0004033,5]
[407690690,1772681439876,-411.73842717,0.00040711,2]
[407690692,1772681439885,-2500.0,0.00040746,2]
[407690694,1772681439895,-2957.5,0.00040822,2]
[407690696,1772681439904,-200.0,0.0004083,10]
[407690698,1772681439914,-9814.82,0.00040835,10]
[407690700,1772681439923,-993.21600309,0.00040835,120]
[407690702,1772681439932,-16734.72,0.00040836,10]
[407690703,1772681439941,-151.0,0.00040842,14]
[407690706,1772681439951,-151.0,0.00040843,14]
[407690708,1772681439960,-536.99066842,0.00040845,31]
[407690710,1772681439969,-500.0,0.00040845,31]
[407690712,1772681439978,-500.0,0.00040845,31]
[407690713,1772681439987,-500.0,0.00040845,31]
[407690714,1772681439997,-500.0,0.00040845,31]
[407690715,1772681440006,-500.0,0.00040845,31]
[407690716,1772681440015,-500.0,0.00040845,31]
[407690717,1772681440024,-500.0,0.00040845,31]
[407690718,1772681440033,-500.0,0.00040845,31]
[407690719,1772681440042,-500.0,0.00040845,31]
[407690720,1772681440053,-500.0,0.00040845,31]
[407690721,1772681440062,-500.0,0.00040845,31]
[407690722,1772681440071,-500.0,0.00040845,31]
[407690723,1772681440081,-500.0,0.00040845,31]
[407690724,1772681440090,-500.0,0.00040845,31]
[407690725,1772681440099,-500.0,0.00040845,31]
[407690726,1772681440109,-500.0,0.00040845,31]
[407690727,1772681440118,-500.0,0.00040845,31]
[407690728,1772681440127,-500.0,0.00040845,31]
[407690729,1772681440136,-500.0,0.00040845,31]
[407690730,1772681440145,-500.0,0.00040845,31]
[407690731,1772681440154,-500.0,0.00040845,31]
[407690732,1772681440163,-500.0,0.00040845,31]
[407690733,1772681440172,-500.0,0.00040845,31]
[407690734,1772681440181,-500.0,0.00040845,31]
[407690735,1772681440191,-500.0,0.00040845,31]
[407690736,1772681440200,-500.0,0.00040845,31]
[407690737,1772681440209,-500.0,0.00040845,31]
[407690738,1772681440218,-500.0,0.00040845,31]
[407690739,1772681440227,-500.0,0.00040845,31]
[407690740,1772681440236,-500.0,0.00040845,31]
[407690741,1772681440245,-500.0,0.00040845,31]
[407690743,1772681440255,-500.0,0.00040845,31]
[407690745,1772681440264,-500.0,0.00040845,31]
[407690747,1772681440273,-500.0,0.00040845,31]
[407690749,1772681440282,-500.0,0.00040845,31]
[407690751,1772681440292,-500.0,0.00040845,31]
[407690753,1772681440301,-500.0,0.00040845,31]
[407690755,1772681440310,-298.19473551,0.00040845,31]
[407690757,1772681440319,-500.0,0.00040845,31]
[407690759,1772681440328,-500.0,0.00040845,31]
[407690761,1772681440338,-500.0,0.00040845,31]
[407690763,1772681440347,-500.0,0.00040845,31]
[407690765,1772681440356,-500.0,0.00040845,31]
[407690767,1772681440366,-500.0,0.00040845,31]
[407690769,1772681440375,-500.0,0.00040845,31]
[407690771,1772681440385,-500.0,0.00040845,31]
[407690773,1772681440394,-500.0,0.00040845,31]
[407690775,1772681440403,-500.0,0.00040845,31]
[407690777,1772681440412,-500.0,0.00040845,31]
[407690779,1772681440421,-500.0,0.00040845,31]
[407690781,1772681440430,-500.0,0.00040845,31]
[407690783,1772681440439,-500.0,0.00040845,31]
[407690785,1772681440449,-500.0,0.00040845,31]
[407690787,1772681440458,-200.0,0.00040845,31]
[407690789,1772681440467,-500.0,0.00040845,31]
[407690791,1772681440476,-500.0,0.00040845,31]
[407690793,1772681440484,-500.0,0.00040845,31]
[407690795,1772681440494,-500.0,0.00040845,31]
[407690797,1772681440503,-878.9666701,0.00040846,2]
[407690799,1772681440512,-22005.6538184,0.00040846,2]
[407690801,1772681440521,-235879.9641081,0.00040846,2]
[407690803,1772681440530,-4437.14335972,0.000409,15]
[407690805,1772681440540,-1740.58614703,0.00041,2]
[407690807,1772681440549,-6908.5465628,0.00041126,2]
[407690809,1772681440558,-4437.14335971,0.00041527,15]
[407690811,1772681440567,-491.58566004,0.00041602,2]
[407690813,1772681440577,-2270.34339438,0.0004168,15]
[407690815,1772681440588,-151.0,0.00041777,14]
[407690818,1772681440600,-154.2266398,0.00041777,14]
[407690820,1772681440610,-1261.55557907,0.0004178,54]
[407690823,1772681440630,-471.01386734,0.0004178,54]
[407690880,1772681442492,-3522.05396648,0.0004178,54]
[407690881,1772681442706,-9346.26840327,0.0004178,54]
[407690882,1772681442718,-3000.0,0.0004178,54]
[407690883,1772681442729,-693.95118436,0.0004178,54]
[407690885,1772681445239,-1934.50524372,0.0004177,10]
[407690886,1772681445300,-422.93999999,0.0004177,10]
[407690887,1772681445317,-271.758,0.0004177,10]
[407690888,1772681445328,-15667.66675629,0.0004177,10]
[407690889,1772681445338,-21305.13149982,0.0004178,54]
[407690890,1772681445348,-154.848934,0.0004178,120]
[407690891,1772681445357,-151.0,0.0004178,120]
[407690892,1772681445367,-151.0,0.0004178,120]
[407690893,1772681445376,-151.0,0.0004178,120]
[407690894,1772681445386,-151.0,0.0004178,120]
[407690895,1772681445396,-151.0,0.0004178,120]
[407690896,1772681445406,-194.12542423,0.0004178,120]
[407690897,1772681445415,-500.0,0.0004178,120]
[407690898,1772681445425,-500.0,0.0004178,120]
[407690899,1772681445435,-500.0,0.0004178,120]
[407690900,1772681445444,-500.0,0.0004178,120]
[407690901,1772681445453,-500.0,0.0004178,120]
[407690902,1772681445463,-500.0,0.0004178,120]
[407690903,1772681445472,-500.0,0.0004178,120]
[407690904,1772681445481,-500.0,0.0004178,120]
[407690905,1772681445491,-533.41993079,0.0004178,120]
[407690906,1772681445500,-500.0,0.0004178,120]
[407690907,1772681445509,-518.5,0.0004178,120]
[407690908,1772681445520,-537.6845,0.0004178,120]
[407690909,1772681445529,-557.5788265,0.0004178,120]
[407690910,1772681445539,-578.20924308,0.0004178,120]
[407690911,1772681445548,-599.60298507,0.0004178,120]
[407690912,1772681445558,-621.78829552,0.0004178,120]
[407690913,1772681445568,-644.79446246,0.0004178,120]
[407690914,1772681445578,-668.65185757,0.0004178,120]
[407690915,1772681445591,-693.3919763,0.0004178,120]
[407690916,1772681445601,-719.04747942,0.0004178,120]
[407690917,1772681445610,-745.65223616,0.0004178,120]
[407690918,1772681445622,-773.2413689,0.0004178,120]
[407690919,1772681445631,-801.85129955,0.0004178,120]
[407690920,1772681445641,-831.51979763,0.0004178,120]
[407690921,1772681445650,-862.28603014,0.0004178,120]
[407690922,1772681445668,-894.19061326,0.0004178,120]
[407690923,1772681445678,-927.27566595,0.0004178,120]
[407690925,1772681445688,-961.58486559,0.0004178,120]
[407690926,1772681445699,-997.16350561,0.0004178,120]
[407690927,1772681445709,-251.0,0.0004178,120]
[407690928,1772681445718,-265.1112199,0.0004178,120]
[407690929,1772681445728,-264.611944,0.0004178,120]
[407690930,1772681445738,-173.733348,0.0004178,14]
[407690931,1772681445747,-173.733348,0.0004178,14]
[407690932,1772681445756,-173.733348,0.0004178,14]
[407690933,1772681445766,-173.733348,0.0004178,14]
[407690934,1772681445775,-173.733348,0.0004178,14]
[407690935,1772681445785,-173.733348,0.0004178,14]
[407690936,1772681445795,-173.733348,0.0004178,14]
[407690937,1772681445804,-173.733348,0.0004178,14]
[407690938,1772681445814,-173.733348,0.0004178,14]
[407690939,1772681445825,-173.733348,0.0004178,14]
[407690940,1772681445836,-173.733348,0.0004178,14]
[407690941,1772681445845,-173.733348,0.0004178,14]
[407690942,1772681445854,-173.733348,0.0004178,14]
[407690943,1772681445869,-173.733348,0.0004178,14]
[407690944,1772681445878,-173.733348,0.0004178,14]
[407690945,1772681445888,-173.733348,0.0004178,14]
[407690946,1772681445897,-6888.0,0.0004178,120]
[407690947,1772681445907,-1000.0,0.0004178,60]
[407690948,1772681445916,-7142.856,0.0004178,120]
[407690949,1772681445925,-1000.0,0.0004178,60]
[407690950,1772681445935,-7407.141672,0.0004178,120]
[407690951,1772681445945,-1000.0,0.0004178,60]
[407690952,1772681445954,-151.0,0.0004178,120]
[407690953,1772681445964,-7681.20591386,0.0004178,120]
[407690954,1772681445974,-1000.0,0.0004178,60]
[407690955,1772681445983,-156.587,0.0004178,120]
[407690956,1772681445993,-520.0,0.0004178,120]
[407690957,1772681446002,-7965.41053268,0.0004178,120]
[407690958,1772681446011,-1000.0,0.0004178,60]
[407690959,1772681446021,-151.19296277,0.0004178,120]
[407690960,1772681446030,-151.0,0.0004178,120]
[407690961,1772681446039,-162.380719,0.0004178,120]
[407690962,1772681446049,-539.24,0.0004178,120]
[407690963,1772681446059,-8260.13072239,0.0004178,120]
[407690964,1772681446071,-151.0,0.0004178,120]
[407690965,1772681446080,-173.03779575,0.0004178,120]
[407690966,1772681446089,-559.19188,0.0004178,120]
[407690967,1772681446098,-8565.75555911,0.0004178,120]
[407690968,1772681446107,-1000.0,0.0004178,60]
[407690969,1772681446116,-151.0,0.0004178,120]
[407690970,1772681446126,-579.88197956,0.0004178,120]
[407690971,1772681446135,-8882.6885148,0.0004178,120]
[407690972,1772681446145,-1000.0,0.0004178,60]
[407690973,1772681446154,-151.0,0.0004178,120]
[407690974,1772681446163,-601.3376128,0.0004178,120]
[407690975,1772681446172,-1000.0,0.0004178,60]
[407690976,1772681446181,-289.59429424,0.0004178,120]
[407690977,1772681446191,-4926.54927095,0.0004178,120]
[407690978,1772681446200,-151.0,0.0004178,120]
[407690979,1772681446209,-170.0,0.0004178,60]
[407690980,1772681446219,-623.58710448,0.0004178,120]
[407690981,1772681446227,-1000.0,0.0004178,60]
[407690982,1772681446237,-151.0,0.0004178,120]
[407690983,1772681446247,-646.65982734,0.0004178,120]
[407690984,1772681446256,-176.29,0.0004178,60]
[407690985,1772681446269,-151.0,0.0004178,120]
[407690986,1772681446522,-182.81273,0.0004178,60]
[407690987,1772681446532,-670.58624095,0.0004178,120]
[407690988,1772681446541,-151.0,0.0004178,120]
[407690989,1772681446550,-151.0,0.0004178,120]
[407690990,1772681446559,-189.57680101,0.0004178,60]
[407690991,1772681446567,-695.39793187,0.0004178,120]
[407690992,1772681446580,-151.0,0.0004178,120]
[407690993,1772681446591,-151.0,0.0004178,120]
[407690994,1772681446600,-196.59114265,0.0004178,60]
[407690995,1772681446609,-154.71503055,0.0004178,120]
[407690996,1772681446620,-151.0,0.0004178,120]
[407690997,1772681446629,-250.0,0.0004178,120]
[407690998,1772681446638,-203.86501493,0.0004178,60]
[407690999,1772681446651,-2500.0,0.0004178,120]
[407691000,1772681446660,-151.0,0.0004178,120]
[407691001,1772681446669,-211.40802048,0.0004178,60]
[407691002,1772681446679,-250.0,0.0004178,120]
[407691003,1772681446688,-2500.0,0.0004178,120]
[407691004,1772681446697,-151.0,0.0004178,120]
[407691005,1772681446706,-219.23011724,0.0004178,60]
[407691006,1772681446715,-250.0,0.0004178,120]
[407691007,1772681446724,-2500.0,0.0004178,120]
[407691008,1772681446733,-227.34163157,0.0004178,60]
[407691009,1772681446743,-151.0,0.0004178,120]
[407691010,1772681446752,-500.0,0.0004178,120]
[407691011,1772681446761,-250.0,0.0004178,120]
[407691012,1772681446770,-2500.0,0.0004178,120]
[407691013,1772681446779,-151.0,0.0004178,120]
[407691014,1772681446788,-500.0,0.0004178,120]
[407691015,1772681446797,-3000.0,0.0004178,120]
[407691016,1772681446807,-2500.0,0.0004178,120]
[407691017,1772681446816,-151.0,0.0004178,120]
[407691018,1772681446825,-500.0,0.0004178,120]
[407691019,1772681446834,-250.0,0.0004178,120]
[407691020,1772681446843,-3000.0,0.0004178,120]
[407691021,1772681446854,-2500.0,0.0004178,120]
[407691022,1772681446863,-250.0,0.0004178,120]
[407691023,1772681446874,-500.0,0.0004178,120]
[407691024,1772681446883,-3000.0,0.0004178,120]
[407691025,1772681446893,-2500.0,0.0004178,120]
[407691026,1772681446902,-250.0,0.0004178,120]
[407691027,1772681446912,-500.0,0.0004178,120]
[407691028,1772681446921,-2500.0,0.0004178,120]
[407691029,1772681446930,-250.0,0.0004178,120]
[407691030,1772681446939,-500.0,0.0004178,120]
[407691031,1772681446949,-3000.0,0.0004178,120]
[407691032,1772681446958,-2500.0,0.0004178,120]
[407691033,1772681446968,-257.63314569,0.0004178,120]
[407691034,1772681446978,-500.0,0.0004178,120]
[407691035,1772681446998,-3000.0,0.0004178,120]
[407691036,1772681447008,-500.0,0.0004178,120]
[407691037,1772681447018,-500.0,0.0004178,120]
[407691038,1772681447027,-3000.0,0.0004178,120]
[407691039,1772681447037,-500.0,0.0004178,120]
[407691040,1772681447047,-500.0,0.0004178,120]
[407691041,1772681447056,-3000.0,0.0004178,120]
[407691042,1772681447066,-500.0,0.0004178,120]
[407691043,1772681447076,-3000.0,0.0004178,120]
[407691044,1772681447085,-500.0,0.0004178,120]
[407691045,1772681447096,-3106.83293184,0.0004178,120]
[407691046,1772681447106,-500.0,0.0004178,120]
[407691047,1772681447117,-500.0,0.0004178,120]
[407691048,1772681447126,-500.0,0.0004178,120]
[407691049,1772681447136,-500.0,0.0004178,120]
[407691050,1772681447145,-250.0,0.0004178,120]
[407691051,1772681447155,-500.0,0.0004178,120]
[407691052,1772681447165,-500.0,0.0004178,120]
[407691053,1772681447175,-250.0,0.0004178,120]
[407691054,1772681447184,-500.0,0.0004178,120]
[407691055,1772681447194,-500.0,0.0004178,120]
[407691056,1772681447204,-500.0,0.0004178,120]
[407691057,1772681447214,-250.0,0.0004178,120]
[407691058,1772681447224,-500.0,0.0004178,120]
[407691059,1772681447234,-500.0,0.0004178,120]
[407691060,1772681447243,-500.0,0.0004178,120]
[407691061,1772681447253,-250.0,0.0004178,120]
[407691062,1772681447263,-250.0,0.0004178,120]
[407691063,1772681447273,-250.0,0.0004178,120]
[407691064,1772681447283,-250.0,0.0004178,120]
[407691065,1772681447292,-500.0,0.0004178,120]
[407691066,1772681447302,-250.0,0.0004178,120]
[407691067,1772681447312,-250.0,0.0004178,120]
[407691068,1772681447321,-500.0,0.0004178,120]
[407691069,1772681447332,-250.0,0.0004178,120]
[407691070,1772681447344,-250.0,0.0004178,120]
[407691071,1772681447354,-500.0,0.0004178,120]
[407691072,1772681447364,-250.0,0.0004178,120]
[407691073,1772681447381,-250.0,0.0004178,120]
[407691074,1772681447392,-500.0,0.0004178,120]
[407691075,1772681447403,-620.0,0.0004178,120]
[407691076,1772681447413,-250.0,0.0004178,120]
[407691077,1772681447424,-253.52031068,0.0004178,120]
[407691078,1772681447434,-642.94,0.0004178,120]
[407691079,1772681447444,-250.0,0.0004178,120]
[407691080,1772681447454,-1030.0,0.0004178,120]
[407691081,1772681447464,-666.72878,0.0004178,120]
[407691082,1772681447474,-250.0,0.0004178,120]
[407691083,1772681447484,-1068.11,0.0004178,120]
[407691084,1772681447494,-691.39774486,0.0004178,120]
[407691085,1772681447504,-1107.63007,0.0004178,120]
[407691086,1772681447514,-726.63274693,0.0004178,120]
[407691087,1772681447524,-258.2328222,0.0004178,120]
[407691088,1772681447534,-1148.61238259,0.0004178,120]
[407691089,1772681447544,-3579.0,0.0004178,120]
[407691090,1772681447553,-500.0,0.0004178,120]
[407691091,1772681447564,-957.48741094,0.0004178,120]
[407691092,1772681447574,-3579.0,0.0004178,120]
[407691093,1772681447587,-518.5,0.0004178,120]
[407691094,1772681447597,-3579.0,0.0004178,120]
[407691095,1772681447607,-537.6845,0.0004178,120]
[407691096,1772681447617,-3579.0,0.0004178,120]
[407691097,1772681447627,-565.21362836,0.0004178,120]
[407691098,1772681447637,-151.0,0.0004178,120]
[407691099,1772681447647,-3579.0,0.0004178,120]
[407691100,1772681447657,-151.0,0.0004178,120]
[407691101,1772681447667,-151.4283214,0.0004178,120]
[407691102,1772681447676,-156.587,0.0004178,120]
[407691103,1772681447686,-3579.0,0.0004178,120]
[407691104,1772681447696,-3579.0,0.0004178,120]
[407691105,1772681447706,-162.380719,0.0004178,120]
[407691106,1772681447716,-3579.0,0.0004178,120]
[407691107,1772681447726,-168.3888056,0.0004178,120]
[407691108,1772681447737,-3579.0,0.0004178,120]
[407691109,1772681447747,-174.61919141,0.0004178,120]
[407691110,1772681447757,-500.0,0.0004178,120]
[407691111,1772681447767,-3579.0,0.0004178,120]
[407691112,1772681447777,-181.08010149,0.0004178,120]
[407691113,1772681447787,-500.0,0.0004178,120]
[407691114,1772681447797,-3579.0,0.0004178,120]
[407691115,1772681447807,-278.38498651,0.0004178,120]
[407691116,1772681447817,-500.0,0.0004178,120]
[407691117,1772681447826,-3579.0,0.0004178,120]
[407691118,1772681447835,-500.0,0.0004178,120]
[407691119,1772681447845,-3579.0,0.0004178,120]
[407691120,1772681447856,-500.0,0.0004178,120]
[407691121,1772681447865,-3579.0,0.0004178,120]
[407691122,1772681447877,-500.0,0.0004178,120]
[407691123,1772681447886,-3579.0,0.0004178,120]
[407691124,1772681447896,-500.0,0.0004178,120]
[407691125,1772681447905,-3579.0,0.0004178,120]
[407691126,1772681447914,-500.0,0.0004178,120]
[407691127,1772681447924,-2097.10611553,0.0004178,120]
[407691128,1772681447934,-500.0,0.0004187,2]
[407691129,1772681447945,-1852.42,0.00041913,2]
[407691130,1772681447954,-200.0,0.00041945,2]
[407691131,1772681447963,-234.2005485,0.00041974,2]
[407691132,1772681447973,-372.1160746,0.00041974,2]
[407691133,1772681447983,-300.0,0.00041974,2]